[Event "EYCC Girls-U18 2019"]
[Site "Bratislava"]
[Date "2019.08.07"]
[Round "6.8"]
[White "Radeva, Viktoria"]
[Black "Ferkova, Dominika"]
[Result "1-0"]
[ECO "B12"]
[WhiteElo "2247"]
[BlackElo "2009"]
[Annotator "NA"]
[PlyCount "81"]
[EventDate "2019.08.02"]
[EventType "swiss"]
[EventCountry "SVK"]
[SourceTitle "playchess.com"]
[Source "ChessBase"]
[SourceQuality "1"]
[TimeControl "40/5400+30:1800+30"]

1. e4 {[%emt 0:00:00]} c6 {[%emt 0:00:00]} 2. d4 {[%emt 0:00:00]} d5 {[%emt 0:00:00]} 3. e5 {[%emt 0:00:00]} Bf5 {[%emt 0:00:00]} 4. Nc3 {[%emt 0:00:00]} e6 {[%emt 0:00:31]} 5. g4 {[%emt 0:00:00]} Bg6 {[%emt 0:00:24]} 6. Nge2 {[%emt 0:00:04]} c5 {[%emt 0:01:40]} 7. h4 {[%emt 0:00:08]} h5 {[%emt 0:11:01]} 8. Nf4 {[%emt 0:00:16]} Bh7 {[%emt 0:00:05]} 9. g5 {[%emt 0:00:11]} Bf5 {[%emt 0:06:14]} 10. dxc5 {[%emt 0:02:05]} Qc7 {[%emt 0:04:54]} 11. Bb5+ {[%emt 0:35:32]} Nc6 {[%emt 0:01:40]} 12. Be3 {[%emt 0:06:10]} Qxe5 {[%emt 0:18:59]} 13. Nfe2 {[%emt 0:06:17]} Bg4 {[%emt 0:09:30]} 14. Qd4 {[%emt 0:12:04]} Qxd4 {[%emt 0:03:23]} 15. Nxd4 {[%emt 0:00:11]} Nge7 {[%emt 0:00:32]} 16. f3 {[%emt 0:02:00]} Bf5 {[%emt 0:00:32]} 17. O-O-O {[%emt 0:12:55]} Bg6 {[%emt 0:07:26]} 18. Bf4 {[%emt 0:01:40]} O-O-O {[%emt 0:03:14]} 19. Nxc6 {[%emt 0:04:33]} Nxc6 {[%emt 0:01:01]} 20. Na4 {[%emt 0:03:23]} f6 {[%emt 0:05:48]} 21. Rhg1 {[%emt 0:02:30]} Bf7 {[%emt 0:05:43]} 22. c3 {[%emt 0:01:48]} e5 {[%emt 0:02:01]} 23. Be3 {[%emt 0:00:37]} Be6 {[%emt 0:02:21]} 24. b4 {[%emt 0:00:55]} f5 {[%emt 0:01:46]} 25. Nb2 {[%emt 0:01:02]} g6 {[%emt 0:06:51]} 26. Ba4 {[%emt 0:03:50]} Bg7 {[%emt 0:02:40]} 27. Bb3 {[%emt 0:01:08]} Rhe8 {[%emt 0:01:26]} 28. Bf2 {[%emt 0:00:26]} e4 {[%emt 0:01:56]} 29. Kc2 {[%emt 0:01:50]} f4 {[%emt 0:01:22]} 30. b5 {[%emt 0:00:35]} Na5 {[%emt 0:00:03]} 31. Bd4 {[%emt 0:00:48]} Bxd4 {[%emt 0:00:28]} 32. Rxd4 {[%emt 0:00:11]} Nxb3 {[%emt 0:00:48]} 33. Kxb3 {[%emt 0:01:14]} Rf8 {[%emt 0:00:31]} 34. Kb4 {[%emt 0:00:37]} exf3 {[%emt 0:00:47]} 35. Nd3 {[%emt 0:00:25]} Bh3 {[%emt 0:00:10]} 36. c6 {[%emt 0:01:28]} bxc6 {[%emt 0:00:42]} 37. bxc6 {[%emt 0:00:01]} Rfe8 {[%emt 0:00:18]} 38. Kc5 {[%emt 0:00:18]} Re3 {[%emt 0:00:53]} 39. Rb1 {[%emt 0:00:16]} Bf5 {[%emt 0:00:42]} 40. Rdb4 {[%emt 0:00:00]} Rxd3 {[%emt 0:00:00]} 41. Rb8+ {[%emt 0:00:31]} 1-0

[Event "EYCC Girls-U18 2019"]
[Site "Bratislava"]
[Date "2019.08.07"]
[Round "6.9"]
[White "Nestorovic, Katarina"]
[Black "Redondo Benavente, Ana"]
[Result "1/2-1/2"]
[ECO "C24"]
[WhiteElo "2179"]
[BlackElo "2176"]
[Annotator "NA"]
[PlyCount "104"]
[EventDate "2019.08.02"]
[EventType "swiss"]
[EventCountry "SVK"]
[SourceTitle "playchess.com"]
[Source "ChessBase"]
[SourceQuality "1"]
[TimeControl "40/5400+30:1800+30"]

1. e4 {[%emt 0:00:00]} e5 {[%emt 0:00:00]} 2. Bc4 {[%emt 0:00:00]} Nf6 {[%emt 0:01:29]} 3. d3 {[%emt 0:00:22]} Bc5 {[%emt 0:00:24]} 4. Nc3 {[%emt 0:01:10]} O-O {[%emt 0:04:36]} 5. f4 {[%emt 0:01:54]} d5 {[%emt 0:07:22]} 6. Nxd5 {[%emt 0:04:34]} Be6 {[%emt 0:01:58]} 7. Nxf6+ {[%emt 0:06:18]} Qxf6 {[%emt 0:00:07]} 8. Bxe6 {[%emt 0:03:00]} fxe6 {[%emt 0:01:18]} 9. Nf3 {[%emt 0:01:55]} exf4 {[%emt 0:00:33]} 10. e5 {[%emt 0:02:19]} Qf5 {[%emt 0:02:50]} 11. Qe2 {[%emt 0:03:58]} Nc6 {[%emt 0:01:46]} 12. c3 {[%emt 0:00:43]} Rad8 {[%emt 0:03:15]} 13. d4 {[%emt 0:00:59]} Bb6 {[%emt 0:00:08]} 14. Bd2 {[%emt 0:06:23]} a5 {[%emt 0:02:55]} 15. a4 {[%emt 0:03:43]} Ne7 {[%emt 0:03:27]} 16. O-O-O {[%emt 0:04:03]} c6 {[%emt 0:11:45]} 17. Rdf1 {[%emt 0:05:49]} Nd5 {[%emt 0:11:03]} 18. g3 {[%emt 0:05:20]} c5 {[%emt 0:03:44]} 19. gxf4 {[%emt 0:13:45]} cxd4 {[%emt 0:01:13]} 20. c4 {[%emt 0:11:10]} Nxf4 {[%emt 0:11:08]} 21. Bxf4 {[%emt 0:00:23]} Qxf4+ {[%emt 0:00:01]} 22. Nd2 {[%emt 0:01:15]} d3 {[%emt 0:05:39]} 23. Qh5 {[%emt 0:10:00]} Qd4 {[%emt 0:03:30]} 24. Rf3 {[%emt 0:01:53]} Rxf3 {[%emt 0:03:41]} 25. Qxf3 {[%emt 0:01:02]} Qf2 {[%emt 0:05:13]} 26. Qxf2 {[%emt 0:05:55]} Bxf2 {[%emt 0:00:05]} 27. Rf1 {[%emt 0:02:04]} Be3 {[%emt 0:00:18]} 28. Re1 {[%emt 0:00:50]} Bh6 {[%emt 0:00:28]} 29. Kd1 {[%emt 0:00:37]} Rf8 {[%emt 0:00:42]} 30. Ne4 {[%emt 0:00:34]} Rf5 {[%emt 0:02:18]} 31. b3 {[%emt 0:02:51]} Rxe5 {[%emt 0:02:21]} 32. Nd6 {[%emt 0:00:09]} Rxe1+ {[%emt 0:01:11]} 33. Kxe1 {[%emt 0:00:04]} b6 {[%emt 0:01:00]} 34. c5 {[%emt 0:00:23]} bxc5 {[%emt 0:00:30]} 35. Nb7 {[%emt 0:00:05]} Be3 {[%emt 0:07:03]} 36. Nxa5 {[%emt 0:00:07]} Bf4 {[%emt 0:02:05]} 37. Nc6 {[%emt 0:01:06]} Bxh2 {[%emt 0:00:47]} 38. a5 {[%emt 0:00:07]} c4 {[%emt 0:00:08]} 39. bxc4 {[%emt 0:00:42]} Bg1 {[%emt 0:00:01]} 40. a6 {[%emt 0:00:00]} Kf7 {[%emt 0:00:00]} 41. Kd2 {[%emt 0:02:32]} h5 {[%emt 0:05:23]} 42. Kxd3 {[%emt 0:01:25]} Bc5 {[%emt 0:00:36]} 43. a7 {[%emt 0:01:51]} Bxa7 {[%emt 0:00:04]} 44. Nxa7 {[%emt 0:00:05]} Ke7 {[%emt 0:05:35]} 45. Kd4 {[%emt 0:06:44]} h4 {[%emt 0:03:12]} 46. Nc6+ {[%emt 0:00:18]} Kd6 {[%emt 0:00:10]} 47. Ne5 {[%emt 0:00:12]} h3 {[%emt 0:02:58]} 48. c5+ {[%emt 0:02:43]} Kc7 {[%emt 0:00:06]} 49. Ng4 {[%emt 0:00:18]} Kc6 {[%emt 0:00:25]} 50. Ne5+ {[%emt 0:04:07]} Kc7 {[%emt 0:00:05]} 51. Ng4 {[%emt 0:00:04]} Kc6 {[%emt 0:00:07]} 52. Ne5+ {[%emt 0:00:05]} Kc7 {[%emt 0:00:04]} 1/2-1/2

[Event "EYCC Girls-U18 2019"]
[Site "Bratislava"]
[Date "2019.08.07"]
[Round "6.10"]
[White "Sibajeva, Marija"]
[Black "Ziegenfuss, Antonia"]
[Result "1-0"]
[ECO "B29"]
[WhiteElo "2031"]
[BlackElo "2063"]
[Annotator "NA"]
[PlyCount "69"]
[EventDate "2019.08.02"]
[EventType "swiss"]
[EventCountry "SVK"]
[SourceTitle "playchess.com"]
[Source "ChessBase"]
[SourceQuality "1"]
[TimeControl "40/5400+30:1800+30"]

1. e4 {[%emt 0:00:00]} c5 {[%emt 0:00:00]} 2. Nf3 {[%emt 0:00:00]} Nf6 {[%emt 0:00:00]} 3. e5 {[%emt 0:02:56]} Nd5 {[%emt 0:00:00]} 4. Nc3 {[%emt 0:01:40]} Nxc3 {[%emt 0:00:00]} 5. dxc3 {[%emt 0:00:28]} Nc6 {[%emt 0:00:10]} 6. Be3 {[%emt 0:08:06]} e6 {[%emt 0:02:02]} 7. Bb5 {[%emt 0:04:45]} Qb6 {[%emt 0:06:00]} 8. Bxc6 {[%emt 0:11:55]} Qxc6 {[%emt 0:00:25]} 9. O-O {[%emt 0:07:18]} b6 {[%emt 0:04:37]} 10. Nd2 {[%emt 0:05:01]} Bb7 {[%emt 0:08:25]} 11. f3 {[%emt 0:00:18]} Ba6 {[%emt 0:14:37]} 12. c4 {[%emt 0:02:47]} h6 {[%emt 0:02:55]} 13. f4 {[%emt 0:01:14]} Bb7 {[%emt 0:04:43]} 14. Qe2 {[%emt 0:04:50]} Be7 {[%emt 0:05:29]} 15. a4 {[%emt 0:14:52]} O-O-O {[%emt 0:10:36]} 16. a5 {[%emt 0:02:50]} f5 {[%emt 0:05:02]} 17. exf6 {[%emt 0:05:19]} gxf6 {[%emt 0:01:31]} 18. axb6 {[%emt 0:01:16]} axb6 {[%emt 0:01:20]} 19. Nf3 {[%emt 0:03:17]} Rdg8 {[%emt 0:03:48]} 20. Rf2 {[%emt 0:01:35]} Rg7 {[%emt 0:03:51]} 21. f5 {[%emt 0:04:16]} exf5 {[%emt 0:07:51]} 22. Nh4 {[%emt 0:00:24]} Rhg8 {[%emt 0:02:12]} 23. Kf1 {[%emt 0:00:36]} Bd6 {[%emt 0:04:13]} 24. Qd2 {[%emt 0:05:14]} Bf8 {[%emt 0:05:07]} 25. Bxh6 {[%emt 0:01:01]} Rg4 {[%emt 0:00:36]} 26. Bxf8 {[%emt 0:05:14]} Rxh4 {[%emt 0:00:11]} 27. Qd6 {[%emt 0:00:48]} Rhg4 {[%emt 0:01:29]} 28. Re2 {[%emt 0:02:16]} Qxd6 {[%emt 0:00:43]} 29. Bxd6 {[%emt 0:00:05]} Bxg2+ {[%emt 0:01:02]} 30. Ke1 {[%emt 0:00:27]} Kb7 {[%emt 0:00:47]} 31. Re7 {[%emt 0:00:15]} Kc6 {[%emt 0:00:25]} 32. Ra7 {[%emt 0:01:47]} Re4+ {[%emt 0:00:12]} 33. Rxe4 {[%emt 0:00:05]} Bxe4 {[%emt 0:00:12]} 34. Bg3 {[%emt 0:00:26]} Bxc2 {[%emt 0:00:17]} 35. Rc7# {[%emt 0:00:08] Kd5} 1-0

[Event "EYCC Girls-U18 2019"]
[Site "Bratislava"]
[Date "2019.08.07"]
[Round "6.11"]
[White "Palma, Maria"]
[Black "Olde, Grete"]
[Result "1-0"]
[ECO "D37"]
[WhiteElo "2137"]
[BlackElo "1955"]
[Annotator "NA"]
[PlyCount "145"]
[EventDate "2019.08.02"]
[EventType "swiss"]
[EventCountry "SVK"]
[SourceTitle "playchess.com"]
[Source "ChessBase"]
[SourceQuality "1"]
[TimeControl "40/5400+30:1800+30"]

1. d4 {[%emt 0:00:00]} d5 {[%emt 0:00:00]} 2. c4 {[%emt 0:00:00]} e6 {[%emt 0:00:00]} 3. Nc3 {[%emt 0:00:05]} Be7 {[%emt 0:00:03]} 4. Nf3 {[%emt 0:00:31]} Nf6 {[%emt 0:00:18]} 5. Bf4 {[%emt 0:00:46]} O-O {[%emt 0:00:51]} 6. e3 {[%emt 0:00:11]} b6 {[%emt 0:00:31]} 7. Rc1 {[%emt 0:01:42]} c5 {[%emt 0:02:16]} 8. Bd3 {[%emt 0:14:17]} Bb7 {[%emt 0:02:09]} 9. cxd5 {[%emt 0:00:42]} exd5 {[%emt 0:00:58]} 10. O-O {[%emt 0:01:57]} Nbd7 {[%emt 0:04:57]} 11. Ne5 {[%emt 0:01:40]} Re8 {[%emt 0:02:54]} 12. Qf3 {[%emt 0:14:38]} a6 {[%emt 0:09:23]} 13. Rfd1 {[%emt 0:09:05]} Nf8 14. g4 {[%emt 0:14:01]} Ng6 {[%emt 0:16:43]} 15. Bg3 {[%emt 0:16:10]} Rf8 {[%emt 0:09:51]} 16. Bf5 {[%emt 0:05:49]} cxd4 {[%emt 0:11:59]} 17. exd4 {[%emt 0:01:50]} Bb4 {[%emt 0:02:48]} 18. g5 {[%emt 0:03:42]} Bxc3 {[%emt 0:02:21]} 19. gxf6 {[%emt 0:00:38]} Bb4 {[%emt 0:04:40]} 20. Nd7 {[%emt 0:01:43]} Re8 {[%emt 0:01:39]} 21. Bc7 {[%emt 0:00:16]} Qc8 {[%emt 0:02:57]} 22. Nxb6 {[%emt 0:00:27]} Nh4 {[%emt 0:02:10]} 23. Qg4 {[%emt 0:00:23]} Nxf5 {[%emt 0:00:09]} 24. Nxc8 {[%emt 0:00:11]} Bxc8 {[%emt 0:00:11]} 25. Be5 {[%emt 0:04:05]} g6 {[%emt 0:01:17]} 26. Qf3 {[%emt 0:03:24]} Nh4 {[%emt 0:01:57]} 27. Qf4 {[%emt 0:01:20]} Nf5 {[%emt 0:00:27]} 28. Rc7 {[%emt 0:00:58]} Bf8 {[%emt 0:01:17]} 29. Qf3 {[%emt 0:00:50]} Be6 {[%emt 0:01:04]} 30. Bf4 {[%emt 0:01:34]} Nh4 {[%emt 0:01:07]} 31. Qg3 {[%emt 0:00:02]} Nf5 {[%emt 0:00:10]} 32. Qc3 {[%emt 0:00:25]} Nh4 {[%emt 0:01:49]} 33. f3 {[%emt 0:00:43]} Bh3 {[%emt 0:02:49]} 34. Kf2 {[%emt 0:00:33]} Rab8 {[%emt 0:02:00]} 35. a3 {[%emt 0:01:01]} Ng2 {[%emt 0:02:59]} 36. Be5 {[%emt 0:00:14]} Bh6 {[%emt 0:02:18]} 37. Kg3 {[%emt 0:00:06]} Ne3 {[%emt 0:00:26]} 38. Rd3 {[%emt 0:01:43]} Nc4 {[%emt 0:00:35]} 39. Rxc4 {[%emt 0:00:51]} dxc4 {[%emt 0:00:28]} 40. Bxb8 {[%emt 0:00:00]} cxd3 {[%emt 0:00:00]} 41. Qxd3 {[%emt 0:10:09]} Bf5 {[%emt 0:12:26]} 42. Qb3 {[%emt 0:00:06]} Rc8 {[%emt 0:01:12]} 43. Bf4 {[%emt 0:03:01]} Bf8 {[%emt 0:01:14]} 44. d5 {[%emt 0:01:03]} h6 {[%emt 0:01:28]} 45. d6 {[%emt 0:08:14]} g5 {[%emt 0:06:56]} 46. Be5 {[%emt 0:00:04]} Be6 {[%emt 0:01:23]} 47. Qe3 {[%emt 0:04:18]} Rc6 {[%emt 0:09:06]} 48. h4 {[%emt 0:01:44]} Bxd6 {[%emt 0:01:52]} 49. hxg5 {[%emt 0:01:32]} Bxe5+ {[%emt 0:02:10]} 50. Qxe5 {[%emt 0:00:08]} hxg5 {[%emt 0:00:35]} 51. Qb8+ {[%emt 0:03:04]} Rc8 {[%emt 0:01:16]} 52. Qb7 {[%emt 0:00:42]} a5 {[%emt 0:00:32]} 53. Qb5 {[%emt 0:00:15]} Kh7 {[%emt 0:01:35]} 54. Qxa5 {[%emt 0:00:14]} Kg6 {[%emt 0:00:15]} 55. Qe5 {[%emt 0:00:28]} Rc4 {[%emt 0:01:06]} 56. b3 {[%emt 0:01:03]} Rh4 {[%emt 0:00:57]} 57. b4 {[%emt 0:00:09]} Rh3+ {[%emt 0:00:15]} 58. Kf2 {[%emt 0:00:50]} g4 {[%emt 0:01:04]} 59. fxg4 {[%emt 0:00:01]} Rxa3 {[%emt 0:00:20]} 60. g5 {[%emt 0:00:57]} Rb3 {[%emt 0:00:42]} 61. Qc5 {[%emt 0:00:21]} Bf5 {[%emt 0:01:55]} 62. b5 {[%emt 0:00:35]} Kxg5 {[%emt 0:00:25]} 63. b6 {[%emt 0:00:06]} Kg6 {[%emt 0:01:10]} 64. Qc7 {[%emt 0:00:50]} Be4 {[%emt 0:00:41]} 65. Qc4 {[%emt 0:00:56]} Rf3+ {[%emt 0:00:35]} 66. Ke2 {[%emt 0:00:31]} Kf5 {[%emt 0:00:35]} 67. Qxf7 {[%emt 0:00:21]} Rf4 {[%emt 0:00:33]} 68. b7 {[%emt 0:01:13]} Bxb7 {[%emt 0:00:02]} 69. Qxb7 {[%emt 0:00:08]} Kxf6 {[%emt 0:00:05]} 70. Ke3 {[%emt 0:00:15]} Rf5 {[%emt 0:00:15]} 71. Qd7 {[%emt 0:00:41]} Ke5 {[%emt 0:00:39]} 72. Qe7+ {[%emt 0:00:28]} Kd5 {[%emt 0:00:04]} 73. Qe4+ {[%emt 0:00:05]} 1-0

[Event "EYCC Girls-U18 2019"]
[Site "Bratislava"]
[Date "2019.08.07"]
[Round "6.12"]
[White "Grigoryan, Arpine"]
[Black "Koubova, Anna Marie"]
[Result "1/2-1/2"]
[ECO "B31"]
[WhiteElo "1996"]
[BlackElo "2094"]
[Annotator "NA"]
[PlyCount "67"]
[EventDate "2019.08.02"]
[EventType "swiss"]
[EventCountry "SVK"]
[SourceTitle "playchess.com"]
[Source "ChessBase"]
[SourceQuality "1"]
[TimeControl "40/5400+30:1800+30"]

1. e4 {[%emt 0:00:00]} c5 {[%emt 0:00:00]} 2. Nf3 {[%emt 0:00:00]} Nc6 {[%emt 0:00:00]} 3. Bb5 {[%emt 0:00:07]} g6 {[%emt 0:00:00]} 4. Bxc6 {[%emt 0:00:14]} bxc6 {[%emt 0:00:04]} 5. O-O {[%emt 0:00:14]} Bg7 {[%emt 0:00:06]} 6. Re1 {[%emt 0:00:20]} Nh6 {[%emt 0:00:17]} 7. c3 {[%emt 0:01:37]} O-O {[%emt 0:00:24]} 8. d4 {[%emt 0:00:19]} cxd4 {[%emt 0:00:14]} 9. cxd4 {[%emt 0:00:12]} d5 {[%emt 0:00:19]} 10. e5 {[%emt 0:00:50]} f6 {[%emt 0:00:44]} 11. exf6 {[%emt 0:08:08]} exf6 {[%emt 0:07:51]} 12. Nbd2 {[%emt 0:03:44]} Bg4 {[%emt 0:12:03]} 13. h3 {[%emt 0:01:49]} Bf5 {[%emt 0:03:33]} 14. Nb3 {[%emt 0:01:50]} Re8 {[%emt 0:10:01]} 15. Rxe8+ {[%emt 0:09:59]} Qxe8 {[%emt 0:00:06]} 16. Be3 {[%emt 0:00:07]} Be4 {[%emt 0:04:18]} 17. Rc1 {[%emt 0:05:29]} Nf5 {[%emt 0:05:34]} 18. Rc3 {[%emt 0:06:45]} Bf8 {[%emt 0:03:48]} 19. a3 {[%emt 0:03:11]} Qd7 {[%emt 0:12:54]} 20. Nh2 {[%emt 0:03:14]} h5 {[%emt 0:02:10]} 21. Bd2 {[%emt 0:12:30]} Ng7 {[%emt 0:10:51]} 22. Bh6 {[%emt 0:06:02]} Bd6 {[%emt 0:03:36]} 23. Bxg7 {[%emt 0:02:53]} Kxg7 {[%emt 0:00:07]} 24. Nf1 {[%emt 0:01:26]} a5 {[%emt 0:04:41]} 25. Ng3 {[%emt 0:05:42]} Qb7 {[%emt 0:07:17]} 26. Nxe4 {[%emt 0:02:38]} dxe4 {[%emt 0:00:09]} 27. Qc2 {[%emt 0:00:19]} Rb8 {[%emt 0:03:32]} 28. Qxe4 {[%emt 0:05:55]} a4 {[%emt 0:02:20]} 29. Nc1 {[%emt 0:00:23]} Qxb2 {[%emt 0:02:19]} 30. Rxc6 {[%emt 0:07:47]} Rb6 {[%emt 0:02:44]} 31. Rc8 {[%emt 0:02:40]} Rb8 {[%emt 0:00:04]} 32. Rc6 {[%emt 0:08:26]} Rb6 33. Rc8 {[%emt 0:00:29]} Rb8 {[%emt 0:00:35]} 34. Rc6 1/2-1/2

[Event "EYCC Girls-U18 2019"]
[Site "Bratislava"]
[Date "2019.08.07"]
[Round "6.13"]
[White "Gajcin, Marina"]
[Black "Chrysogelou, Athanasia-Panagiota"]
[Result "1-0"]
[ECO "B40"]
[WhiteElo "2267"]
[BlackElo "1770"]
[Annotator "NA"]
[PlyCount "77"]
[EventDate "2019.08.02"]
[EventType "swiss"]
[EventCountry "SVK"]
[SourceTitle "playchess.com"]
[Source "ChessBase"]
[SourceQuality "1"]
[TimeControl "40/5400+30:1800+30"]

1. e4 {[%emt 0:00:00]} c5 {[%emt 0:00:00]} 2. Nf3 {[%emt 0:00:00]} e6 {[%emt 0:00:00]} 3. c3 {[%emt 0:03:27]} Nf6 {[%emt 0:02:18]} 4. Bd3 {[%emt 0:01:37]} Nc6 {[%emt 0:05:02]} 5. O-O {[%emt 0:00:23]} Be7 {[%emt 0:00:57]} 6. Bc2 {[%emt 0:04:32]} O-O {[%emt 0:10:39]} 7. Re1 {[%emt 0:07:37]} Qc7 {[%emt 0:04:16]} 8. d4 {[%emt 0:05:50]} cxd4 {[%emt 0:04:07]} 9. cxd4 {[%emt 0:03:52]} Nb4 {[%emt 0:03:12]} 10. Bb3 {[%emt 0:03:39]} d6 {[%emt 0:02:19]} 11. a3 {[%emt 0:01:55]} Nc6 {[%emt 0:00:55]} 12. Nc3 {[%emt 0:00:37]} e5 {[%emt 0:08:16]} 13. d5 {[%emt 0:10:00]} Na5 {[%emt 0:02:52]} 14. Ba2 {[%emt 0:01:32]} b6 {[%emt 0:01:35]} 15. h3 {[%emt 0:02:06]} Nb7 {[%emt 0:02:19]} 16. Be3 {[%emt 0:12:29]} Nc5 {[%emt 0:06:06]} 17. Rc1 {[%emt 0:00:53]} Qd8 {[%emt 0:03:42]} 18. Bb1 {[%emt 0:01:29]} Bd7 {[%emt 0:04:59]} 19. b4 {[%emt 0:02:52]} Nb7 {[%emt 0:00:49]} 20. Qb3 {[%emt 0:03:52]} h6 {[%emt 0:04:51]} 21. Bd3 {[%emt 0:01:57]} a6 {[%emt 0:04:08]} 22. Na4 {[%emt 0:03:43]} b5 {[%emt 0:09:41]} 23. Nb6 {[%emt 0:00:11]} Rb8 {[%emt 0:00:05]} 24. Nxd7 {[%emt 0:00:16]} Qxd7 {[%emt 0:00:08]} 25. Rc6 {[%emt 0:01:43]} Ra8 {[%emt 0:00:17]} 26. Rec1 {[%emt 0:01:06]} Ne8 {[%emt 0:02:07]} 27. Qc2 {[%emt 0:03:22]} Bd8 {[%emt 0:01:40]} 28. Nd2 {[%emt 0:00:51]} Bg5 {[%emt 0:04:47]} 29. Bxg5 {[%emt 0:02:12]} hxg5 {[%emt 0:00:06]} 30. Be2 {[%emt 0:01:22]} g6 {[%emt 0:04:18]} 31. Qd3 {[%emt 0:01:21]} Nd8 {[%emt 0:01:28]} 32. R6c3 {[%emt 0:00:20]} f5 {[%emt 0:03:12]} 33. Qe3 {[%emt 0:00:30]} Qe7 {[%emt 0:02:08]} 34. Qb6 {[%emt 0:03:19]} Rf7 {[%emt 0:01:17]} 35. Rc8 {[%emt 0:01:09]} Rxc8 {[%emt 0:00:24]} 36. Rxc8 {[%emt 0:00:01]} Nb7 {[%emt 0:00:08]} 37. Qxa6 {[%emt 0:01:54]} Qd7 {[%emt 0:01:03]} 38. Qc6 {[%emt 0:00:34]} Kf8 {[%emt 0:00:39]} 39. Bxb5 {[%emt 0:00:26]} 1-0

[Event "EYCC Girls-U18 2019"]
[Site "Bratislava"]
[Date "2019.08.07"]
[Round "6.14"]
[White "Nazarova, Anastasia"]
[Black "Koljevic, Nikolina"]
[Result "1-0"]
[ECO "B33"]
[WhiteElo "2149"]
[BlackElo "1960"]
[Annotator "NA"]
[PlyCount "43"]
[EventDate "2019.08.02"]
[EventType "swiss"]
[EventCountry "SVK"]
[SourceTitle "playchess.com"]
[Source "ChessBase"]
[SourceQuality "1"]
[TimeControl "40/5400+30:1800+30"]

1. e4 {[%emt 0:00:00]} c5 {[%emt 0:00:00]} 2. Nf3 {[%emt 0:00:00]} Nc6 {[%emt 0:00:00]} 3. d4 {[%emt 0:00:00]} cxd4 {[%emt 0:00:00]} 4. Nxd4 {[%emt 0:00:00]} Nf6 {[%emt 0:00:00]} 5. Nc3 {[%emt 0:00:00]} e6 {[%emt 0:00:12]} 6. Ndb5 {[%emt 0:00:00]} Bb4 {[%emt 0:00:32]} 7. a3 {[%emt 0:00:05]} Bxc3+ {[%emt 0:00:05]} 8. Nxc3 {[%emt 0:00:04]} d5 {[%emt 0:00:20]} 9. exd5 {[%emt 0:00:35]} exd5 {[%emt 0:00:07]} 10. Bd3 {[%emt 0:00:22]} O-O {[%emt 0:00:24]} 11. O-O {[%emt 0:00:42]} d4 {[%emt 0:00:45]} 12. Ne2 {[%emt 0:00:14]} Bg4 {[%emt 0:01:12]} 13. Bg5 {[%emt 0:03:25]} Qd6 {[%emt 0:02:00]} 14. Qd2 {[%emt 0:01:54]} Rfe8 {[%emt 0:06:32]} 15. Bf4 {[%emt 0:09:23]} Qd7 {[%emt 0:01:06]} 16. Ng3 {[%emt 0:08:10]} Rac8 {[%emt 0:11:42]} 17. h3 {[%emt 0:14:09]} Be6 {[%emt 0:00:32]} 18. Rfe1 {[%emt 0:09:28]} a6 {[%emt 0:02:54]} 19. b4 {[%emt 0:05:45]} Ne7 {[%emt 0:03:52]} 20. Be5 {[%emt 0:02:41]} Ng6 {[%emt 0:01:49]} 21. Bxf6 {[%emt 0:00:45]} gxf6 {[%emt 0:00:01]} 22. Nh5 {[%emt 0:00:35]} 1-0

[Event "EYCC Girls-U18 2019"]
[Site "Bratislava"]
[Date "2019.08.07"]
[Round "6.15"]
[White "Represa Perez, Mireya"]
[Black "Golub, Nikolina"]
[Result "1-0"]
[ECO "B53"]
[WhiteElo "2017"]
[BlackElo "1856"]
[Annotator "NA"]
[PlyCount "107"]
[EventDate "2019.08.02"]
[EventType "swiss"]
[EventCountry "SVK"]
[SourceTitle "playchess.com"]
[Source "ChessBase"]
[SourceQuality "1"]
[TimeControl "40/5400+30:1800+30"]

1. e4 {[%emt 0:00:00]} c5 {[%emt 0:00:00]} 2. Nf3 {[%emt 0:00:00]} d6 {[%emt 0:00:00]} 3. d4 {[%emt 0:00:00]} cxd4 {[%emt 0:00:00]} 4. Qxd4 {[%emt 0:00:00]} Nc6 {[%emt 0:00:00]} 5. Bb5 {[%emt 0:00:00]} a6 {[%emt 0:00:01]} 6. Bxc6+ {[%emt 0:00:04]} bxc6 {[%emt 0:00:04]} 7. O-O {[%emt 0:01:10]} e5 {[%emt 0:00:12]} 8. Qd3 {[%emt 0:00:37]} Qc7 {[%emt 0:00:19]} 9. Rd1 {[%emt 0:12:09]} Nf6 {[%emt 0:00:11]} 10. c4 {[%emt 0:00:44]} Be7 {[%emt 0:00:20]} 11. Nc3 {[%emt 0:01:46]} O-O {[%emt 0:00:20]} 12. b3 {[%emt 0:02:16]} Be6 {[%emt 0:04:38]} 13. Bb2 {[%emt 0:03:03]} Rfd8 {[%emt 0:05:24]} 14. Rac1 {[%emt 0:00:29]} Nd7 {[%emt 0:03:48]} 15. Qe2 {[%emt 0:03:38]} Qa5 {[%emt 0:11:42]} 16. Na4 {[%emt 0:02:05]} Qc7 {[%emt 0:01:00]} 17. Ba3 {[%emt 0:05:15]} f6 {[%emt 0:03:44]} 18. Nh4 {[%emt 0:02:59]} g6 {[%emt 0:07:23]} 19. Rc3 {[%emt 0:02:40]} Nb6 {[%emt 0:06:17]} 20. Nxb6 {[%emt 0:10:55]} Qxb6 {[%emt 0:00:07]} 21. Rg3 {[%emt 0:00:10]} Kf7 {[%emt 0:02:07]} 22. Nf5 {[%emt 0:08:13]} Bxf5 {[%emt 0:04:32]} 23. exf5 {[%emt 0:00:11]} Qa5 {[%emt 0:02:48]} 24. Bc1 {[%emt 0:09:34]} d5 {[%emt 0:01:20]} 25. Rh3 {[%emt 0:06:22]} gxf5 {[%emt 0:14:55]} 26. Rxh7+ {[%emt 0:01:25]} Ke6 {[%emt 0:00:29]} 27. Qh5 {[%emt 0:00:36]} Re8 {[%emt 0:07:56]} 28. Bd2 {[%emt 0:11:32]} Qc5 {[%emt 0:03:59]} 29. cxd5+ {[%emt 0:02:40]} cxd5 {[%emt 0:05:30]} 30. Qf7+ {[%emt 0:03:08]} Kd6 {[%emt 0:07:55]} 31. Rc1 {[%emt 0:08:54]} Qd4 {[%emt 0:02:38]} 32. Be3 {[%emt 0:01:22]} Rac8 {[%emt 0:00:36]} 33. g3 {[%emt 0:01:02]} Rxc1+ {[%emt 0:01:29]} 34. Bxc1 {[%emt 0:00:01]} Qd1+ {[%emt 0:03:12]} 35. Kg2 {[%emt 0:00:01]} Qxc1 {[%emt 0:01:49]} 36. Qxe8 {[%emt 0:00:03]} Qc7 {[%emt 0:00:06]} 37. Qxe7+ {[%emt 0:01:16]} Qxe7 {[%emt 0:00:09]} 38. Rxe7 {[%emt 0:00:02]} Kxe7 {[%emt 0:00:01]} 39. Kf3 {[%emt 0:00:12]} d4 {[%emt 0:00:25]} 40. Ke2 {[%emt 0:00:00]} e4 {[%emt 0:00:00]} 41. h4 {[%emt 0:01:56]} Kf7 {[%emt 0:10:34]} 42. b4 {[%emt 0:02:55]} Kg6 {[%emt 0:00:04]} 43. a4 {[%emt 0:00:43]} Kh5 {[%emt 0:00:04]} 44. b5 {[%emt 0:01:08]} axb5 {[%emt 0:00:03]} 45. axb5 {[%emt 0:00:06]} f4 {[%emt 0:00:06]} 46. gxf4 {[%emt 0:01:58]} Kxh4 {[%emt 0:04:25]} 47. b6 {[%emt 0:00:15]} Kg4 {[%emt 0:00:11]} 48. b7 {[%emt 0:00:05]} Kxf4 {[%emt 0:00:30]} 49. b8=Q+ {[%emt 0:00:05]} Kg4 {[%emt 0:00:09]} 50. Qd6 {[%emt 0:00:11]} d3+ {[%emt 0:01:32]} 51. Ke3 {[%emt 0:00:05]} f5 {[%emt 0:00:07]} 52. Qg6+ {[%emt 0:00:14]} Kh4 {[%emt 0:00:07]} 53. Kf4 {[%emt 0:00:05]} d2 {[%emt 0:00:14]} 54. Qh6# 1-0